bitfinex-derivatives/quotes_BTCF0:USTF0_20250823
["timestamp","ask_amount","ask_price","bid_price","bid_amount"]
[1755942637072,0.5034993,115730.0,115720.0,0.33721231]
[1755942637674,0.5044993,115730.0,115720.0,0.33621231]
[1755942637875,0.5044993,115730.0,115720.0,0.32607688]
[1755942638074,0.5044993,115730.0,115720.0,0.3362114]
[1755942639173,0.5034993,115730.0,115720.0,0.3362114]
[1755942639372,0.5034993,115730.0,115720.0,0.3372114]
[1755942639578,0.07538745,115730.0,115720.0,0.3372114]
[1755942639772,0.12181745,115730.0,115720.0,1.07865325]
[1755942640173,0.5024593,115730.0,115720.0,0.6980114]
[1755942640878,0.12181745,115730.0,115720.0,1.1980114]
[1755942641078,0.5024593,115730.0,115720.0,1.1980114]
[1755942642082,0.5024593,115730.0,115720.0,1.57865325]
[1755942642381,0.12181745,115730.0,115720.0,1.57865325]
[1755942642870,0.5024593,115730.0,115720.0,1.57765325]
[1755942643069,0.5034593,115730.0,115720.0,1.57765325]
[1755942645377,0.5024593,115730.0,115720.0,1.57865325]
[1755942645682,0.12181745,115730.0,115720.0,1.57865325]
[1755942645886,0.5024593,115730.0,115720.0,1.57765325]
[1755942646079,0.5034593,115730.0,115720.0,1.57765325]
[1755942647083,0.5034593,115730.0,115720.0,1.55400499]
[1755942647279,0.5034593,115730.0,115720.0,1.57765218]
[1755942647582,0.5034593,115730.0,115720.0,1.57865218]
[1755942648383,0.5034593,115730.0,115720.0,1.57765218]
[1755942648588,0.5024593,115730.0,115720.0,1.57965218]
[1755942649088,0.5024593,115730.0,115720.0,1.57765218]
[1755942649283,0.5034593,115730.0,115720.0,1.57765218]
[1755942649683,0.12281745,115730.0,115720.0,1.57765218]
[1755942649883,0.5034593,115730.0,115720.0,1.57765218]
[1755942650887,0.5034593,115730.0,115720.0,1.57865218]
[1755942651782,0.5024593,115730.0,115720.0,1.58065218]
[1755942652081,0.5024593,115730.0,115720.0,1.57965218]
[1755942652283,0.5024593,115730.0,115720.0,1.57765218]
[1755942652484,0.5034593,115730.0,115720.0,1.57765218]
[1755942652678,0.5034593,115730.0,115720.0,1.21685218]
[1755942652885,0.5034593,115730.0,115720.0,1.57765218]
[1755942653874,0.10160745,115730.0,115720.0,1.19701033]
[1755942654183,0.5034593,115730.0,115720.0,1.57765218]
[1755942655184,0.5034593,115730.0,115720.0,1.57865218]
[1755942655482,0.5024593,115730.0,115720.0,1.57965218]
[1755942655684,0.12181745,115730.0,115720.0,1.57965218]
[1755942655977,0.5034593,115730.0,115720.0,1.57865218]
[1755942656484,0.5034593,115730.0,115720.0,1.56851767]
[1755942656685,0.5034593,115730.0,115720.0,1.57865218]
[1755942657285,0.5034593,115730.0,115720.0,1.19801033]
[1755942657481,0.5034593,115730.0,115720.0,1.57865218]
[1755942657785,0.5034593,115730.0,115720.0,1.57765218]
[1755942658683,0.5024593,115730.0,115720.0,1.57765218]
[1755942658888,0.5024593,115730.0,115720.0,1.57965218]
[1755942659290,0.12281745,115730.0,115720.0,1.57765218]
[1755942659689,0.5034593,115730.0,115720.0,1.57765218]
[1755942659890,0.5034593,115730.0,115720.0,1.19701033]
[1755942660090,0.5034593,115730.0,115720.0,1.57765218]
[1755942660591,0.5034593,115730.0,115720.0,1.46870064]
[1755942661083,0.5034593,115730.0,115720.0,1.08805879]
[1755942661290,0.12281745,115730.0,115720.0,1.46870064]
[1755942661589,0.4888693,115730.0,115720.0,1.57765218]
[1755942661790,0.4636493,115730.0,115720.0,1.57765218]
[1755942662483,0.4626493,115730.0,115720.0,1.58065218]
[1755942663180,0.4636493,115730.0,115720.0,1.21785218]
[1755942663383,0.4888693,115730.0,115720.0,1.57865218]
[1755942663783,0.5024593,115730.0,115720.0,1.57865218]
[1755942664283,0.5024593,115730.0,115720.0,1.57765218]
[1755942665192,0.10060745,115730.0,115720.0,1.57765218]
[1755942665391,0.10060745,115730.0,115720.0,1.57765191]
[1755942665693,0.08701745,115730.0,115720.0,1.57765191]
[1755942666693,0.08601745,115730.0,115720.0,1.57765191]
[1755942666984,0.08601745,115730.0,115720.0,1.57865191]
[1755942667381,0.06079745,115730.0,115720.0,1.57865191]
[1755942669795,0.06079745,115730.0,115720.0,1.57765191]
[1755942670095,0.06079745,115730.0,115720.0,1.57865191]
[1755942670594,0.01070745,115730.0,115720.0,1.57865191]
[1755942670789,0.44230185,115740.0,115720.0,1.50958191]
[1755942670992,0.41948185,115740.0,115730.0,0.2050743]
[1755942671191,0.41948185,115740.0,115730.0,0.24625214]
[1755942671493,0.45163185,115740.0,115730.0,0.73584553]
[1755942671692,0.57687865,115740.0,115730.0,0.35520368]
[1755942671896,0.57687865,115740.0,115730.0,0.24625214]
[1755942673195,0.57787865,115740.0,115730.0,0.24625214]
[1755942674098,0.57787865,115740.0,115730.0,0.24625219]
[1755942674485,0.57787865,115740.0,115730.0,0.22260517]
[1755942674692,0.57787865,115740.0,115730.0,0.24625219]
[1755942674892,0.57787865,115740.0,115730.0,0.32407992]
[1755942675690,0.57787865,115740.0,115730.0,0.24625219]
[1755942675890,0.58813876,115740.0,115730.0,0.24625219]
[1755942678296,0.58813876,115740.0,115730.0,0.32407954]
[1755942683305,0.58813876,115740.0,115730.0,0.31056696]
[1755942683491,0.58813876,115740.0,115730.0,0.32407948]
[1755942683892,0.20749691,115740.0,115730.0,0.31056693]
[1755942684199,0.58813876,115740.0,115730.0,0.32407948]
[1755942684393,0.20749691,115740.0,115730.0,0.32407948]
[1755942684699,0.58813876,115740.0,115730.0,0.24625213]
[1755942685899,0.20749691,115740.0,115730.0,0.24625213]
[1755942686103,0.58813876,115740.0,115730.0,0.24625213]
[1755942686406,0.20749691,115740.0,115730.0,0.24625213]
[1755942686701,0.09584011,115740.0,115730.0,0.70470001]
[1755942686913,0.50170196,115740.0,115730.0,0.62689398]
[1755942687105,0.50170196,115740.0,115730.0,0.73584552]
[1755942687703,0.50170196,115740.0,115730.0,0.35520367]
[1755942687914,0.50170196,115740.0,115730.0,0.73584552]
[1755942688406,0.50070196,115740.0,115730.0,0.73584552]
[1755942688604,0.50070196,115740.0,115730.0,0.73684552]
[1755942688907,0.50070196,115740.0,115730.0,0.73584552]
[1755942689205,0.50170196,115740.0,115730.0,0.73584552]
[1755942689504,0.50170196,115740.0,115730.0,0.35520367]
[1755942689799,0.50170196,115740.0,115730.0,0.73584552]
[1755942690699,0.12106011,115740.0,115730.0,0.73584552]
[1755942690911,0.50170196,115740.0,115730.0,0.73584552]
[1755942692605,0.50170196,115740.0,115730.0,0.71219856]
[1755942692906,0.50170196,115740.0,115730.0,0.73584496]
[1755942694404,0.12106011,115740.0,115730.0,0.73584496]
[1755942694607,0.47648196,115740.0,115730.0,0.73584496]
[1755942695104,0.50170196,115740.0,115730.0,0.73584496]
[1755942695306,0.09818011,115740.0,115730.0,0.71600311]
[1755942695499,0.12106011,115740.0,115730.0,1.09664496]
[1755942695698,0.12006011,115740.0,115730.0,0.71700311]
[1755942695899,0.12006011,115740.0,115730.0,1.09764449]
[1755942696109,0.12006011,115740.0,115730.0,1.09664449]
[1755942696310,0.09584011,115740.0,115730.0,1.09664449]
[1755942696606,0.12106011,115740.0,115730.0,1.09664449]
[1755942696908,0.12106011,115740.0,115730.0,1.21600264]
[1755942697110,0.12106011,115740.0,115730.0,1.59664449]
[1755942697899,0.12006011,115740.0,115730.0,1.59764449]
[1755942698605,0.12006011,115740.0,115730.0,1.21700264]
[1755942699003,0.12006011,115740.0,115730.0,1.59764449]
[1755942700509,0.05837011,115740.0,115730.0,1.59764449]
[1755942701712,0.04910011,115740.0,115730.0,1.59764449]
[1755942701915,0.04910011,115740.0,115730.0,1.57399856]
[1755942702111,0.01026011,115740.0,115730.0,1.59764363]
[1755942702309,0.49077185,115750.0,115740.0,0.1022573]
[1755942702503,0.57720175,115750.0,115740.0,0.29490151]
[1755942702703,0.57720175,115750.0,115740.0,0.30503511]
[1755942703309,0.5872763,115750.0,115740.0,0.30503511]
[1755942704013,0.5872763,115750.0,115740.0,0.22730237]
[1755942704202,0.5872763,115750.0,115740.0,0.33625391]
[1755942704399,0.5882763,115750.0,115740.0,0.33625391]
[1755942704599,0.5018464,115750.0,115740.0,0.22730237]
[1755942704911,0.5018464,115750.0,115740.0,0.30502557]
[1755942705311,0.5882763,115750.0,115740.0,0.30502557]
[1755942710519,0.5882763,115750.0,115740.0,0.22730237]
[1755942710913,0.5882763,115750.0,115740.0,0.33625391]
[1755942711315,0.5882763,115750.0,115740.0,0.31260884]
[1755942711512,0.5882763,115750.0,115740.0,0.33625391]
[1755942716121,0.5872763,115750.0,115740.0,0.33725391]
[1755942716515,0.5872763,115750.0,115740.0,0.30600578]
[1755942717721,0.5882763,115750.0,115740.0,0.30500578]
[1755942719826,0.20763445,115750.0,115740.0,0.30500578]
[1755942720026,0.5882763,115750.0,115740.0,0.30500578]
[1755942720428,0.5882763,115750.0,115740.0,0.29487218]
[1755942720728,0.5882763,115750.0,115740.0,0.30500578]
[1755942721431,0.5882763,115750.0,115740.0,0.30500582]
[1755942721728,0.5882763,115750.0,115740.0,0.22730241]
[1755942723622,0.5882763,115750.0,115740.0,0.30500582]
[1755942725634,0.5882763,115750.0,115740.0,0.30500586]
[1755942727733,0.20763445,115750.0,115740.0,0.30500586]
[1755942728049,0.5882763,115750.0,115740.0,0.30500586]
[1755942728634,0.5882763,115750.0,115740.0,0.29487222]
[1755942728837,0.5882763,115750.0,115740.0,0.30500585]
[1755942729234,0.5882763,115750.0,115740.0,0.22730244]
[1755942730238,0.5882763,115750.0,115740.0,0.30507775]
[1755942731735,0.20763445,115750.0,115740.0,0.30507775]
[1755942731927,0.5882763,115750.0,115740.0,0.30507775]
[1755942734540,0.01107455,115750.0,115740.0,1.07769583]
[1755942735232,0.01107455,115750.0,115740.0,0.69705398]
[1755942735640,0.01107455,115750.0,115740.0,1.57769583]
[1755942735832,0.01107455,115750.0,115740.0,1.46874429]
[1755942736139,0.01107455,115750.0,115740.0,1.08810244]
[1755942736327,0.01107455,115750.0,115740.0,1.57852163]
[1755942736328,0.01007455,115750.0,115740.0,1.57852163]
[1755942736534,0.59961922,115760.0,115750.0,0.1328799]
[1755942736831,0.64670922,115760.0,115750.0,0.60625253]
[1755942737332,0.64670922,115760.0,115750.0,1.09567172]
[1755942738043,0.64670922,115760.0,115750.0,1.09566924]
[1755942738645,0.64770922,115760.0,115750.0,1.09566924]
[1755942739341,0.64770922,115760.0,115750.0,0.71502739]
[1755942739641,0.64770922,115760.0,115750.0,1.09566924]
[1755942740032,0.65739568,115760.0,115750.0,0.9868919]
[1755942740537,0.51489568,115760.0,115750.0,0.9868919]
[1755942741039,0.13425383,115760.0,115750.0,0.96324924]
[1755942741241,0.51489568,115760.0,115750.0,0.60625005]
[1755942741546,0.51489568,115760.0,115750.0,0.9868919]
[1755942741847,0.13425383,115760.0,115750.0,1.06454478]
[1755942742144,0.51489568,115760.0,115750.0,0.68390293]
[1755942742343,0.51489568,115760.0,115750.0,1.06454478]
[1755942742543,0.51619568,115760.0,115750.0,1.06454478]
[1755942743137,0.51619568,115760.0,115750.0,0.9868919]
[1755942744638,0.13555383,115760.0,115750.0,0.9868919]
[1755942744944,0.51619568,115760.0,115750.0,0.9868919]
[1755942747149,0.13555383,115760.0,115750.0,0.96324924]
[1755942747446,0.51619568,115760.0,115750.0,0.98689178]
[1755942747745,0.51619568,115760.0,115750.0,0.9868916]
[1755942748245,0.51619568,115760.0,115750.0,1.4868916]
[1755942748446,0.51619568,115760.0,115750.0,1.56454448]
[1755942749146,0.48916831,115760.0,115750.0,1.4868916]
[1755942749341,0.10852646,115760.0,115750.0,1.4868916]
[1755942749542,0.05861646,115760.0,115750.0,1.4868916]
[1755942749747,0.08383646,115760.0,115750.0,1.4868916]
[1755942750045,0.46577831,115760.0,115750.0,1.4868916]
[1755942750246,1.26461831,115760.0,115750.0,1.4868916]
[1755942750840,0.88397646,115760.0,115750.0,1.10624975]
[1755942751035,1.26461831,115760.0,115750.0,1.4868916]
[1755942751247,1.26461831,115760.0,115750.0,1.10624975]
[1755942751446,1.26461831,115760.0,115750.0,1.4868916]
[1755942752251,0.88397646,115760.0,115750.0,1.4868916]
[1755942752547,1.26461831,115760.0,115750.0,1.4868916]
[1755942755145,0.88397646,115760.0,115750.0,1.10624975]
[1755942755351,1.26461831,115760.0,115750.0,1.56454448]
[1755942755548,0.88397646,115760.0,115750.0,1.56454448]
[1755942755749,1.26461831,115760.0,115750.0,1.56454448]
[1755942756555,1.26461831,115760.0,115750.0,1.56454444]
[1755942756947,1.26461831,115760.0,115750.0,1.17377017]
[1755942757148,1.26461831,115760.0,115750.0,1.18390259]
[1755942757345,1.37443061,115760.0,115750.0,1.56454444]
[1755942757744,1.37443061,115760.0,115750.0,1.20374444]
[1755942757952,1.37443061,115760.0,115750.0,1.18390259]
[1755942758151,1.37443061,115760.0,115750.0,1.56454444]
[1755942758854,1.37443061,115760.0,115750.0,1.57805434]
[1755942759048,1.28800831,115760.0,115750.0,1.57805434]
[1755942759554,1.28800831,115760.0,115750.0,1.19741249]
[1755942759754,1.28800831,115760.0,115750.0,1.57805434]
[1755942760854,1.28800831,115760.0,115750.0,1.50040146]
[1755942762253,0.48916831,115760.0,115750.0,1.50040146]
[1755942762558,1.28740831,115760.0,115750.0,1.50040146]
[1755942762860,1.28740831,115760.0,115750.0,1.6091788]
[1755942765360,1.28740831,115760.0,115750.0,1.22853695]
[1755942765652,1.28740831,115760.0,115750.0,1.5956689]
[1755942765957,1.28740831,115760.0,115750.0,1.6091788]
[1755942766157,1.28740831,115760.0,115750.0,1.68692827]
[1755942766549,1.28740831,115760.0,115750.0,1.55113113]
[1755942766749,1.28740831,115760.0,115750.0,1.57815093]
[1755942767158,0.90676646,115760.0,115750.0,1.57815093]
[1755942767358,0.90676646,115760.0,115750.0,1.19750908]
[1755942767654,0.48916831,115760.0,115750.0,1.19750908]
[1755942767858,1.28652831,115760.0,115750.0,1.19750908]
[1755942768162,1.28652831,115760.0,115750.0,1.57815093]
[1755942768751,1.28728831,115760.0,115750.0,1.57815093]
[1755942769755,0.48916831,115760.0,115750.0,1.57815093]
[1755942769962,1.28736831,115760.0,115750.0,1.57815093]
[1755942770561,1.28736831,115760.0,115750.0,1.50040146]
[1755942771161,1.28716831,115760.0,115750.0,1.50040146]
[1755942772063,1.28696831,115760.0,115750.0,1.50040146]
[1755942772367,0.90632646,115760.0,115750.0,1.50040146]
[1755942772758,1.28696831,115760.0,115750.0,1.50040146]
[1755942772960,0.48916831,115760.0,115750.0,1.50040146]
[1755942773265,1.28728831,115760.0,115750.0,1.57815333]
[1755942774265,1.28728831,115760.0,115750.0,1.50040146]
[1755942774465,1.28728831,115760.0,115750.0,1.11975961]
[1755942774658,1.28728831,115760.0,115750.0,1.50040146]
[1755942774851,1.28728831,115760.0,115750.0,1.57815333]
[1755942775051,1.28728831,115760.0,115750.0,1.55451101]
[1755942775258,0.90664646,115760.0,115750.0,1.57815333]
[1755942775562,1.28728831,115760.0,115750.0,1.57815333]
[1755942775957,0.90664646,115760.0,115750.0,1.57815333]
[1755942776365,0.90664646,115760.0,115750.0,1.50040146]
[1755942776867,0.90664646,115760.0,115750.0,1.11975961]
[1755942777060,0.90664646,115760.0,115750.0,1.50040146]
[1755942777365,0.90664646,115760.0,115750.0,1.11975961]
[1755942777567,0.90664646,115760.0,115750.0,1.50040146]
[1755942778361,0.90664646,115760.0,115750.0,1.11975961]
[1755942778567,0.90664646,115760.0,115750.0,1.50040146]
[1755942779864,0.90664646,115760.0,115750.0,1.57815846]
[1755942784262,0.88325646,115760.0,115750.0,1.57815846]
[1755942784572,0.88325646,115760.0,115750.0,1.50040146]
[1755942785175,0.80880646,115760.0,115750.0,1.57815831]
[1755942785370,0.69208602,115760.0,115750.0,1.48689156]
[1755942787070,0.69208602,115760.0,115750.0,1.48789156]
[1755942787576,0.69208602,115760.0,115750.0,1.48989156]
[1755942787777,0.70208495,115760.0,115750.0,1.10924971]
[1755942788077,0.70208495,115760.0,115750.0,1.48989156]
[1755942788777,0.70208495,115760.0,115750.0,1.48889156]
[1755942788978,0.70208495,115760.0,115750.0,1.48689156]
[1755942789480,0.70208495,115760.0,115750.0,1.48688944]
[1755942789667,0.70208495,115760.0,115750.0,1.49088944]
[1755942790267,0.70208495,115760.0,115750.0,1.48988944]
[1755942790572,0.70208495,115760.0,115750.0,1.49088944]
[1755942791173,0.80939893,115760.0,115750.0,1.74088944]
[1755942791369,0.7994,115760.0,115750.0,1.84958428]
[1755942791569,1.01020498,115780.0,115770.0,0.2061348]
[1755942791774,1.8190954,115780.0,115770.0,0.6880529]
[1755942792481,1.8190954,115780.0,115770.0,0.67454421]
[1755942792684,1.8190954,115780.0,115770.0,0.68805215]
[1755942793771,1.8190954,115780.0,115770.0,0.3074103]
[1755942798181,1.43571909,115780.0,115770.0,0.3074103]
[1755942798778,1.36839909,115780.0,115770.0,0.3074102]
[1755942799178,1.27933227,115780.0,115770.0,0.3074102]
[1755942799479,1.36574187,115780.0,115770.0,0.3074102]
[1755942799682,0.98510002,115780.0,115770.0,0.3074102]
[1755942799885,1.36574187,115780.0,115770.0,0.3074102]
[1755942800083,1.43412651,115780.0,115770.0,0.3074102]
[1755942801289,1.05348466,115780.0,115770.0,0.3074102]
[1755942801586,1.43412651,115780.0,115770.0,0.3074102]
[1755942801784,1.43412651,115780.0,115770.0,0.28377085]
[1755942802086,1.43412651,115780.0,115770.0,0.30741006]
[1755942803205,1.05348466,115780.0,115770.0,0.30741006]
[1755942803391,1.43412651,115780.0,115770.0,0.30741006]
[1755942804087,1.05348466,115780.0,115770.0,0.30741006]
[1755942804278,1.43412651,115780.0,115770.0,0.68805191]
[1755942804883,1.43412651,115780.0,115770.0,0.68805174]
[1755942805193,1.43412651,115780.0,115770.0,0.30740989]
[1755942806593,0.89869042,115780.0,115770.0,0.68805174]
[1755942806792,0.89869042,115780.0,115770.0,0.61041569]
[1755942807089,1.27933227,115780.0,115770.0,1.11041569]
[1755942807895,1.27933227,115780.0,115770.0,1.11041563]
[1755942808595,0.89869042,115780.0,115770.0,1.11041563]
[1755942808795,1.27933227,115780.0,115770.0,1.11041563]
[1755942809097,1.27933227,115780.0,115770.0,0.72977378]
[1755942809295,1.27933227,115780.0,115770.0,1.11041563]
[1755942809683,0.89869042,115780.0,115770.0,1.11041563]
[1755942811097,0.89869042,115780.0,115770.0,1.11041558]
[1755942811297,0.89869042,115780.0,115770.0,1.18805163]
[1755942811496,0.89869042,115780.0,115770.0,1.17454367]
[1755942811697,0.89869042,115780.0,115770.0,1.18805163]
[1755942811897,0.89869042,115780.0,115770.0,0.80740978]
[1755942812089,0.89869042,115780.0,115770.0,1.18805163]
[1755942814097,0.89869042,115780.0,115770.0,1.17792066]
[1755942814297,0.89869042,115780.0,115770.0,1.18805163]
[1755942814491,0.89869042,115780.0,115770.0,1.11041558]
[1755942816094,0.89869042,115780.0,115770.0,1.18808172]
[1755942816902,0.89869042,115780.0,115770.0,1.11041558]
[1755942820298,0.89869042,115780.0,115770.0,1.08677665]
[1755942820502,0.89869042,115780.0,115770.0,1.11041558]
[1755942820904,0.89869042,115780.0,115770.0,1.18811]
[1755942821797,0.09965042,115780.0,115770.0,1.18811]
[1755942821997,0.84661042,115780.0,115770.0,1.18811]
[1755942822198,0.87183042,115780.0,115770.0,1.18811]
[1755942822798,0.89592042,115780.0,115770.0,1.18811]
[1755942823305,0.89592042,115780.0,115770.0,0.80746815]
[1755942823506,0.89592042,115780.0,115770.0,1.18810999]
[1755942824496,0.89592042,115780.0,115770.0,0.72977372]
[1755942824698,0.89592042,115780.0,115770.0,1.11041557]
[1755942824898,0.89592042,115780.0,115770.0,1.21911041]
[1755942825100,0.89592042,115780.0,115770.0,0.83846856]
[1755942825406,0.89592042,115780.0,115770.0,1.21911041]
[1755942825606,0.89592042,115780.0,115770.0,1.11041557]
[1755942826909,0.87183042,115780.0,115770.0,1.11041557]
[1755942827710,0.89592042,115780.0,115770.0,1.11041557]
[1755942828409,0.89528042,115780.0,115770.0,1.11041557]
[1755942828610,0.89528042,115780.0,115770.0,1.11041531]
[1755942828812,0.89528042,115780.0,115770.0,1.47121531]
[1755942829310,0.89528042,115780.0,115770.0,1.47121455]
[1755942829615,0.89528042,115780.0,115770.0,1.0669348]
[1755942829805,0.89528042,115780.0,115770.0,1.47121377]
[1755942830004,0.89528042,115780.0,115770.0,1.57990861]
[1755942830217,0.87119042,115780.0,115770.0,1.57990861]
[1755942830405,0.87119042,115780.0,115770.0,1.47121377]
[1755942830604,0.75449138,115780.0,115770.0,1.47121377]
[1755942830805,0.77055138,115780.0,115770.0,1.57994363]
[1755942831514,0.77997864,115780.0,115770.0,1.57994363]
[1755942832911,0.77997864,115780.0,115770.0,1.47121359]
[1755942834317,0.77997864,115780.0,115770.0,1.47221359]
[1755942834714,0.77997864,115780.0,115770.0,1.5808851]
[1755942835510,0.77997864,115780.0,115770.0,1.65850184]
[1755942835905,0.77997864,115780.0,115770.0,1.54983033]
[1755942836106,0.80566726,115780.0,115770.0,1.54983033]
[1755942836310,0.03515007,115790.0,115780.0,0.2020673]
[1755942836511,0.83139007,115790.0,115780.0,0.96714609]
[1755942836817,0.84546007,115790.0,115780.0,0.58650424]
[1755942837010,0.83139007,115790.0,115780.0,0.96714609]
[1755942837510,0.84546007,115790.0,115780.0,0.96714609]
[1755942838012,0.84546007,115790.0,115780.0,0.58650424]
[1755942838214,0.84546007,115790.0,115780.0,0.96714609]
[1755942838917,0.85529948,115790.0,115780.0,0.96714577]
[1755942840110,0.85489948,115790.0,115780.0,0.96714577]
[1755942841216,0.84082948,115790.0,115780.0,0.58650392]
[1755942841415,0.84082948,115790.0,115780.0,0.96714577]
[1755942841616,0.85489948,115790.0,115780.0,0.96714577]
[1755942841811,1.23554133,115790.0,115780.0,0.96714577]
[1755942842220,0.43970133,115790.0,115780.0,0.96714577]
[1755942842406,1.23546133,115790.0,115780.0,0.96714577]
[1755942842613,0.84074948,115790.0,115780.0,0.96714577]
[1755942842811,0.84074948,115790.0,115780.0,1.07581728]
[1755942843520,0.84074948,115790.0,115780.0,0.96714577]
[1755942844022,0.84074948,115790.0,115780.0,0.96714567]
[1755942844218,0.80559941,115790.0,115780.0,1.04473738]
[1755942844717,0.00983941,115790.0,115780.0,1.04473738]
[1755942844917,0.7954,115790.0,115780.0,0.96714567]
[1755942845111,0.44582331,115800.0,115790.0,0.0863997]
[1755942845322,1.24118331,115800.0,115790.0,0.60786807]
[1755942845514,0.44582331,115800.0,115790.0,0.68545603]
[1755942845711,1.17223,115800.0,115790.0,0.60786807]
[1755942846018,0.82124634,115800.0,115790.0,0.60786807]
[1755942846424,0.82116634,115800.0,115790.0,0.60786807]
[1755942846924,0.82232634,115800.0,115790.0,0.60786807]
[1755942847126,0.82332634,115800.0,115790.0,0.60786565]
[1755942847927,0.82324634,115800.0,115790.0,0.60786565]
[1755942849330,0.82324634,115800.0,115790.0,0.68538883]
[1755942849826,0.82284634,115800.0,115790.0,0.68538883]
[1755942850127,0.82284634,115800.0,115790.0,1.18538883]
[1755942850328,0.82284634,115800.0,115790.0,0.7272238]
[1755942850524,0.82284634,115800.0,115790.0,1.10786565]
[1755942851530,0.82284634,115800.0,115790.0,1.21653716]
[1755942852328,0.02788634,115800.0,115790.0,1.10786565]
[1755942852634,0.80645634,115800.0,115790.0,1.46866565]
[1755942853019,0.01181634,115800.0,115790.0,1.46866565]
[1755942853629,0.01181634,115800.0,115790.0,1.57733716]
[1755942854729,0.002,115800.0,115790.0,1.57733716]
[1755942855130,0.002,115800.0,115790.0,1.46866565]
[1755942855329,0.002,115800.0,115790.0,1.57714602]
[1755942855728,0.002,115800.0,115790.0,1.46866565]
[1755942856124,0.002,115800.0,115790.0,2.26302565]
[1755942856417,0.002,115800.0,115790.0,2.26302381]
[1755942857832,0.002,115800.0,115790.0,2.70785172]
[1755942859233,0.00018551,115800.0,115790.0,2.70785172]
[1755942859427,0.00018551,115800.0,115790.0,2.58587917]
[1755942859627,0.00018551,115800.0,115790.0,2.59938249]
[1755942865529,0.00018551,115800.0,115790.0,2.58925438]
[1755942865734,0.00018551,115800.0,115790.0,2.59938185]
[1755942868937,0.00018551,115800.0,115790.0,2.70780538]
[1755942869937,0.00018551,115800.0,115790.0,2.45780538]
[1755942872134,0.00018551,115800.0,115790.0,1.98858185]
[1755942872336,0.00018551,115800.0,115790.0,2.71018185]
[1755942872637,0.00018551,115800.0,115790.0,2.78765985]
[1755942873636,0.00018551,115800.0,115790.0,2.407018]
[1755942873837,0.00018551,115800.0,115790.0,2.78765985]
[1755942874839,0.00018551,115800.0,115790.0,2.77415654]
[1755942875138,0.00018551,115800.0,115790.0,2.78765985]
[1755942876138,0.00018551,115800.0,115790.0,2.407018]
[1755942876344,0.00018551,115800.0,115790.0,2.78765985]
[1755942876524,1.36313617,115820.0,115810.0,0.1339081]
[1755942876525,1.34318281,115820.0,115810.0,0.1339081]
[1755942876728,1.34318281,115820.0,115810.0,0.22920889]
[1755942877738,1.34918281,115820.0,115810.0,0.22920889]
[1755942877939,1.24111281,115820.0,115810.0,0.22920889]
[1755942879939,1.24111281,115820.0,115810.0,0.30668689]
[1755942880141,1.25868312,115820.0,115810.0,0.30668689]
[1755942882344,0.87804127,115820.0,115810.0,0.30668689]
[1755942882842,1.25868312,115820.0,115810.0,0.30668689]
[1755942884043,1.25868312,115820.0,115810.0,0.21570558]
[1755942884342,1.25868312,115820.0,115810.0,0.22917267]
[1755942884536,1.25868312,115820.0,115810.0,0.30678236]
[1755942885543,1.25868312,115820.0,115810.0,0.68742421]
[1755942887344,1.25868312,115820.0,115810.0,0.68742422]
[1755942887644,1.25868312,115820.0,115810.0,0.60981453]
[1755942887857,1.17230372,115820.0,115810.0,0.60981453]
[1755942888040,1.25868442,115820.0,115810.0,0.60981453]
[1755942888752,1.25868442,115820.0,115810.0,0.59968696]
[1755942888933,1.25868442,115820.0,115810.0,0.60981453]
[1755942890145,1.35235166,115820.0,115810.0,0.60981453]
[1755942890540,1.35235166,115820.0,115810.0,0.59634752]
[1755942890733,1.35235166,115820.0,115810.0,0.60972392]
[1755942893346,1.35235166,115820.0,115810.0,0.68736951]
[1755942893845,1.35235166,115820.0,115810.0,0.68736946]
[1755942895243,1.26597096,115820.0,115810.0,0.68736946]
[1755942895442,1.35235166,115820.0,115810.0,0.68736946]
[1755942896243,0.97170981,115820.0,115810.0,0.68736946]
[1755942896447,1.35235166,115820.0,115810.0,0.68736946]
[1755942896744,0.97170981,115820.0,115810.0,0.68736946]
[1755942896948,1.35235166,115820.0,115810.0,0.68736946]
[1755942897141,0.97170981,115820.0,115810.0,0.68736946]
[1755942897336,1.35235166,115820.0,115810.0,0.68736946]
[1755942898150,0.97170981,115820.0,115810.0,0.68736946]
[1755942898356,1.35235166,115820.0,115810.0,0.68736946]
[1755942899356,1.35235166,115820.0,115810.0,0.60972387]
[1755942899755,1.35235166,115820.0,115810.0,0.71819307]
[1755942901458,1.35235166,115820.0,115810.0,0.60972387]
[1755942901960,1.35235166,115820.0,115810.0,0.59634752]
[1755942902160,1.35235166,115820.0,115810.0,0.60985095]
[1755942904864,1.35235166,115820.0,115810.0,0.2292091]
[1755942905165,1.35235166,115820.0,115810.0,0.60985095]
[1755942905464,1.35235166,115820.0,115810.0,0.2292091]
[1755942905764,1.35235166,115820.0,115810.0,0.60985095]
[1755942906357,1.35235166,115820.0,115810.0,0.2292091]
[1755942906558,1.35235166,115820.0,115810.0,0.60985095]
[1755942906966,1.35235166,115820.0,115810.0,0.2292091]
[1755942907267,1.35235166,115820.0,115810.0,0.60985095]
[1755942909560,1.35235166,115820.0,115810.0,0.2292091]
[1755942909763,1.71015166,115820.0,115810.0,0.1811991]
[1755942909963,1.71015166,115820.0,115810.0,0.1436091]
[1755942910264,1.70715166,115820.0,115810.0,0.21133146]
[1755942911166,1.70715166,115820.0,115810.0,0.21047389]
[1755942911363,1.70715166,115820.0,115810.0,0.2070984]
[1755942911570,1.70715166,115820.0,115810.0,0.22060232]
[1755942912871,1.32650981,115820.0,115810.0,0.22060232]
[1755942913071,1.70715166,115820.0,115810.0,0.22060232]
[1755942915465,1.70715166,115820.0,115810.0,0.27716232]
[1755942915968,1.32650981,115820.0,115810.0,0.27716232]
[1755942916170,1.70715166,115820.0,115810.0,0.27716232]
[1755942916672,1.70715166,115820.0,115810.0,0.29146232]
[1755942918268,1.70715166,115820.0,115810.0,0.29144712]
[1755942919577,1.70715166,115820.0,115810.0,0.21380996]
[1755942919775,1.70715166,115820.0,115810.0,0.22944996]
[1755942919974,1.70715166,115820.0,115810.0,0.14306186]
[1755942920166,1.24012911,115820.0,115810.0,0.52370371]
[1755942920574,1.24012911,115820.0,115810.0,0.50007185]
[1755942920779,1.62077096,115820.0,115810.0,0.14306186]
[1755942920971,1.62077096,115820.0,115810.0,0.52370371]
[1755942921172,0.82769096,115820.0,115810.0,0.52370371]
[1755942921372,1.61913096,115820.0,115810.0,0.14306186]
[1755942921576,1.61913096,115820.0,115810.0,0.52370371]
[1755942924176,1.61913096,115820.0,115810.0,0.63217291]
[1755942924476,1.61913096,115820.0,115810.0,0.25153106]
[1755942924682,1.61913096,115820.0,115810.0,0.32916218]
[1755942925079,1.61913096,115820.0,115810.0,0.22069298]
[1755942925280,1.61913096,115820.0,115810.0,0.14306186]
[1755942925680,1.61913096,115820.0,115810.0,0.52370371]
[1755942926074,1.70551196,115820.0,115810.0,0.52370371]
[1755942926481,1.70551196,115820.0,115810.0,0.60133483]
[1755942926881,1.70551196,115820.0,115810.0,0.14306186]
[1755942929683,1.70551196,115820.0,115810.0,0.12955794]
[1755942929884,1.70551196,115820.0,115810.0,0.14306186]
[1755942930075,1.70551196,115820.0,115810.0,0.22945036]